Cogmind - Beta 13 @@@ ROGUE MODE // 2024.05.29 @ 16:36:38 Player: saltine Result: Destroyed by G-34 Mercenary with Small Laser Performance ------------- Evolutions (1) 500 Regions Visited (2) 400 Robots Destroyed (7) 35 Value Destroyed (238) 238 Prototype IDs (0) 0 Alien Tech Used (0) 0 Bonus (0) 0 TOTAL SCORE: 1173 Bonus ------- None Cogmind --------- Core Integrity 0/400 Matter 300/300 Energy 99/100 System Corruption 0% Temperature Cool (6) Movement Core (100) Ox1 Location -9/Materials Parts ------- > --- POWER (1) -------- (None) > --- PROPULSION (2) --- (None) > --- UTILITY (4) ------ Small Storage Unit Signal Interpreter > --- WEAPON (2) ------- (None) > --- INVENTORY (8) ---- Ion Engine Light Nuclear Core Wheel Peak State ------------ > --- POWER ------------ Ion Engine > --- PROPULSION ------- Light Treads Compact Wheel > --- UTILITY ---------- Small Storage Unit Sensor Array Signal Interpreter Seismic Detector > --- WEAPON ----------- Heavy Assault Rifle Autogun > --- INVENTORY -------- Ion Engine Light Nuclear Core Wheel EM Pulse Gun Particle Gun [Rating: 11] Favorites ----------- Power Ion Engine Engine Ion Engine Propulsion Compact Wheel Treads Light Treads Wheel Compact Wheel Utility Small Storage Unit Device Seismic Detector Storage Small Storage Unit Processor Signal Interpreter Protection Backup Plating I Weapon Small Laser Energy Gun Small Laser Ballistic Gun Autogun Build | -11 -10 -9 ------- Run | Yrd Mat Mat Slots Evolved 2 | . . 2 Power . | . . . Propulsion . | . . . Utility 2 | . . 2 Weapon . | . . . Parts Attached 16 | 6 1 9 Power 3 | 1 1 1 Engine 3 | 1 1 1 Core . | . . . Reactor . | . . . Propulsion 3 | 2 . 1 Treads 1 | . . 1 Leg . | . . . Wheel 2 | 2 . . Hover . | . . . Flight . | . . . Utility 4 | 1 . 3 Device 2 | . . 2 Storage 1 | 1 . . Processor 1 | . . 1 Hackware . | . . . Protection . | . . . Artifact . | . . . Weapon 6 | 2 . 4 Energy Gun 4 | 2 . 2 Energy Cannon . | . . . Ballistic Gun 2 | . . 2 Ballistic Cannon . | . . . Launcher . | . . . Special Weapon . | . . . Impact Weapon . | . . . Slashing Weapon . | . . . Piercing Weapon . | . . . Special Melee Weapon . | . . . Unidentified Prototypes . | . . . Parts Lost 13 | . . 13 Power 1 | . . 1 Propulsion 3 | . . 3 Utility 3 | . . 3 Weapon 6 | . . 6 Highest Loss Streak 9 | . . 9 To Critical Strikes . | . . . Average Slot Usage (%) 89 | . 90 88 Engine 12 | . 14 11 Treads 2 | . . 3 Wheel 18 | . 28 13 Device 11 | . . 18 Storage 12 | . 14 11 Processor 5 | . . 8 Protection 3 | . 5 1 Energy Gun 14 | . 28 6 Ballistic Gun 9 | . . 14 Naked Turns . | . . . Heaviest Build 18 | 13 14 18 Greatest Support 26 | 26 26 26 Greatest Overweight (x) 4 | . . 4 Average Overweight (x) . | . . . Largest Inventory Capacity 8 | 8 8 8 Average Capacity 7 | 7 8 8 Most Carried 6 | 3 6 6 Average Carried 4 | 1 4 5 Final Capacity 8 | 8 8 8 Final Carried 6 | 2 6 3 Class Distribution -------------------- 100% | Mutant Dominant Class ---------------- Mutant | -10/Materials Mutant | -9/Materials Resources | -11 -10 -9 ----------- Run | Yrd Mat Mat Matter Collected 441 | 241 29 171 Remotely . | . . . Salvage Created 355 | . 38 317 Parts 25 | . 4 21 Haulers Intercepted . | . . . Recyclers Shooed . | . . . Parts Field Recycled . | . . . Retrieved Matter . | . . . Parts Self-Destructed . | . . . Prevented . | . . . Kills | -11 -10 -9 ------- Run | Yrd Mat Mat Combat Hostiles Destroyed 5 | . 1 4 Guns 5 | . 1 4 Classes Destroyed 4 | . 1 3 Recycler 1 | . . 1 Watcher 1 | . . 1 Grunt 2 | . 1 1 Sentry 3 | . . 3 Best Kill Streak 4 | . 1 4 Combat Bots Only 1 | . 1 1 Max Kills in Single Turn 1 | . 1 1 Gunslinging . | . . . Exploded . | . . . Melee . | . . . Uniques/NPCs Destroyed . | . . . Combat | -11 -10 -9 -------- Run | Yrd Mat Mat Hostile Shots Fired 154 | . 19 135 Missed 47 | . 9 38 Damage Taken 1424 | . 96 1328 Core 403 | . . 403 Absorbed by Shields . | . . . Regen/Repaired (Parts) 48 | . . 48 Core Remaining (%) 100 | 100 100 . Volleys Fired 37 | . 6 31 Largest 2 | . 2 2 Hottest 105 | . 80 105 Shots Fired 71 | . 12 59 Gun 71 | . 12 59 Cannon . | . . . Launcher . | . . . Special . | . . . Kinetic 37 | . . 37 Thermal 25 | . 6 19 Explosive . | . . . Electromagnetic 9 | . 6 3 Robot Hit Streak 11 | . 5 11 Robot Miss Streak 1 | . 1 1 Penetration Max . | . . . Secondary Targets . | . . . Shots Hit Robots 49 | . 9 40 Core Hits 17 | . 3 14 Critical Kills . | . . . Critical Parts Destroyed . | . . . Critical Strikes . | . . . Melee Attacks . | . . . Impact . | . . . Slashing . | . . . Piercing . | . . . Sneak Attacks . | . . . Combat Hostiles . | . . . Follow-up Attacks . | . . . Damage Inflicted 677 | . 103 574 Guns 677 | . 103 574 Cannons . | . . . Explosions . | . . . Melee . | . . . Ramming . | . . . Kinetic 442 | . . 442 Thermal 173 | . 52 121 Explosive . | . . . Electromagnetic 62 | . 51 11 Impact . | . . . Slashing . | . . . Piercing . | . . . Highest Corruption . | . . . Average Corruption . | . . . Corruption Purged . | . . . Corruption Blocked . | . . . Overload Shots . | . . . Overflow Damage . | . . . Projectiles . | . . . Explosions . | . . . Melee . | . . . Knockbacks . | . . . Impact . | . . . Kinetic . | . . . Secondary . | . . . Self-Inflicted Damage . | . . . Shots . | . . . Rammed . | . . . Targets Rammed . | . . . Kicked . | . . . Crushed . | . . . Highest Temperature 156 | . 156 139 Average Temperature 44 | . 83 32 Received Heat Transfer 663 | . 30 633 Siege Activations . | . . . Robots Corrupted . | . . . Combat Hostiles . | . . . Parts Fried . | . . . Impact Corruptions . | . . . Robots Melted . | . . . Combat Hostiles . | . . . Parts Melted . | . . . Heat Transferred 400 | . 125 275 Parts Sabotaged . | . . . Parts Stolen . | . . . Parts Stripped . | . . . Power Chain Reactions . | . . . Alert | -11 -10 -9 ------- Run | Yrd Mat Mat Peak Influence 179 | . 40 179 Initial 22 | . . 22 Average 63 | . 12 100 Maximum Alert Level . | . . . Low Security (%) 100 | 100 100 100 Level 1 . | . . . Level 2 . | . . . Level 3 . | . . . Level 4 . | . . . Level 5 . | . . . High Security . | . . . Max Security . | . . . Squads Dispatched 5 | . 2 3 Investigation 2 | . 1 1 Extermination . | . . . Reinforcement 3 | . 1 2 Assault . | . . . Garrison . | . . . Intercept . | . . . Searches Triggered . | . . . Construction Impeded . | . . . Haulers Reinforced . | . . . Active Scanning Responses . | . . . Cargo Convoy Interrupts . | . . . Stealth | -11 -10 -9 --------- Run | Yrd Mat Mat Distress Signals 2 | . 1 1 Communications Jammed . | . . . Distress Signals . | . . . Times Spotted 18 | . 4 14 Peak Tracking Total 8 | . 4 8 Tactical Retreats 1 | . 1 . Traps | -11 -10 -9 ------- Run | Yrd Mat Mat Traps Triggered 1 | . 1 . Indirectly . | . . . Trap Hack Attempts . | . . . Triggered . | . . . Disarmed . | . . . Reprogrammed . | . . . Reused . | . . . Traps Extracted . | . . . Installed . | . . . Triggered . | . . . Machines | -11 -10 -9 ---------- Run | Yrd Mat Mat Machines Disabled . | . . . Max in Single Turn . | . . . Machines Repaired . | . . . Machines Dismantled . | . . . Machines Sabotaged . | . . . Overloaded Fab Kills . | . . . Hacking | -11 -10 -9 --------- Run | Yrd Mat Mat Machines Accessed 8 | . 5 3 Terminals 4 | . 3 1 Fabricators . | . . . Repair Stations 2 | . 1 1 Recycling Units 2 | . 1 1 Scanalyzers . | . . . Garrison Access . | . . . Total Hacks 15 | . 10 5 Successful 8 | . 5 3 Failed 7 | . 5 2 Catastrophic 1 | . . 1 Database Lockouts . | . . . Manual 8 | . 6 2 Terminals 7 | . 5 2 Fabricators . | . . . Repair Stations 5 | . 3 2 Recycling Units 3 | . 2 1 Scanalyzers . | . . . Garrison Access . | . . . Terminal Hacks . | . . . Fabricator Hacks . | . . . Repair Station Hacks 3 | . 1 2 Scan Component 1 | . . 1 Repair 1 | . . 1 Refit 1 | . 1 . Recycling Unit Hacks 2 | . 1 1 Retrieve Components 2 | . 1 1 Scanalyzer . | . . . Garrison Access Hacks . | . . . Unauthorized Hacks 3 | . 3 . Terminals 3 | . 3 . Botnet 3 | . 3 . Fabricators . | . . . Repair Stations . | . . . Recycling Units . | . . . Scanalyzers . | . . . Garrison Access . | . . . Data Cores Recovered . | . . . Used . | . . . Hacking Detections 5 | . 3 2 Full Trace Events 2 | . 1 1 Feedback Events . | . . . Feedback Blocked . | . . . Robot Schematics Acquired . | . . . Robots Built . | . . . Authchips . | . . . Time . | . . . Total Robot Build Rating . | . . . Part Schematics Acquired . | . . . Parts Built . | . . . Authchips . | . . . Time . | . . . Total Part Build Rating . | . . . Parts Repaired 1 | . . 1 Time 26 | . . 26 Parts Recycled . | . . . Recycled Matter . | . . . Retrieved Matter . | . . . Retrieved Components 3 | . 2 1 Parts Scanalyzed . | . . . Part Schematics Acquired . | . . . Parts Damaged . | . . . Bothacking | -11 -10 -9 ------------ Run | Yrd Mat Mat Used RIF Installer . | . . . Robots Hacked . | . . . Non-combat . | . . . Combat . | . . . Robot Hacks Applied . | . . . Relay Couplers Released . | . . . Fabnet Peak Effective % . | . . . Robots Rewired . | . . . Allies Hacked . | . . . Hacks Repelled . | . . . Allies | -11 -10 -9 -------- Run | Yrd Mat Mat Total Allies . | . . . Largest Group . | . . . Highest-Rated Group . | . . . Highest-Rated Ally . | . . . Total Orders . | . . . Ally Attacks . | . . . Total Damage . | . . . Kills . | . . . Allies Corrupted . | . . . Allies Melted . | . . . Intel | -11 -10 -9 ------- Run | Yrd Mat Mat Robot Analysis Total . | . . . Derelict Logs Recovered . | . . . Drone Launches . | . . . Drone Recoveries . | . . . Exploration | -11 -10 -9 ------------- Run | Yrd Mat Mat Turns Passed 718 | 52 245 421 Spaces Moved 544 | 46 247 251 Core 17 | 8 . 9 Treads 78 | . . 78 Legs . | . . . Wheels 449 | 38 247 164 Hover . | . . . Flight . | . . . Fastest Speed 50 | 50 90 90 Average Speed 103 | 83 90 121 Slowest Speed 250 | 90 90 250 Overloaded Moves . | . . . Propulsion Burnouts . | . . . Robots Hopped . | . . . Cave-ins Triggered . | . . . Exploration Rate (%) 21 | 3 30 30 Regions Visited 2 Branch Regions . Pre-discovered Areas . | . . . Known Exits Taken . | . . . Unknown Exits Taken 2 | 1 1 . Scrap Searched . | . . . Spaces Dug . | . . . Terrain Destroyed . | . . . Melee . | . . . Projectile . | . . . AOE . | . . . Terrain Rammed . | . . . Walls Destroyed . | . . . Machines Disabled . | . . . Actions | -11 -10 -9 --------- Run | Yrd Mat Mat Total 629 | 59 257 313 Wait 19 | . . 19 Move 542 | 45 246 251 Hop . | . . . Pick Up 14 | 7 4 3 Fast Attach 6 | 2 1 3 Attach 10 | 4 . 6 Detach . | . . . Swap . | . . . Drop 1 | 1 . . Fire 37 | . 6 31 Melee . | . . . Ram . | . . . Kick . | . . . Crush . | . . . Escape Stasis . | . . . Rewire . | . . . Trap . | . . . Miscellaneous . | . . . Route ------- -11/Scrapyard -10/Materials (discovered 2 exits: *Mat / [*Min]) -9/Materials History --------- Turn | Location | Event 31 | -11/Scrapyard | Discovered new exit (range 16) 53 | -11/Scrapyard | Entered Materials 74 | -10/Materials | Discovered new exit (range 14) 232 | -10/Materials | Discovered new exit (range 16) 298 | -10/Materials | Entered another Materials area 298 | -9/Materials | Evolved 2 slots: Utility x2 330 | -9/Materials | Build established: Mutant 359 | -9/Materials | Repaired Ion Engine 417 | -9/Materials | Lost 3 parts (1n1u1w) 688 | -9/Materials | Core integrity fell below 50% 714 | -9/Materials | Core integrity fell below 20% 719 | -9/Materials | Destroyed by G-34 Mercenary with Small Laser Last Messages --------------- 00570_ ALERT: Hostiles spotted, dispatching reinforcements to Terminal M003. 00572_ R-06 Scavenger collects Hvy. Assault Rifle. 00572_ R-06 Scavenger collects Imp. Ion Engine. 00624_ ALERT: Hostiles spotted, dispatching reinforcements to Terminal M006. 00691_ Connecting with Terminal... 00691_ ALERT: Suspicious activity at Terminal M005. Dispatching Investigation squad. 00693_ Seismic Detector destroyed. 00693_ Sensor Array destroyed. 00695_ Hvy. Assault Rifle destroyed. 00698_ Autogun destroyed. 00701_ Lgt. Treads destroyed. 00701_ Com. Wheel destroyed. 00709_ EM Pulse Gun destroyed. 00710_ Particle Gun destroyed. 00713_ Ion Engine destroyed. 00716_ M-13 Machinist repairs Heat Sink. Map ----- +----------------------------------------------------+ | ??????????????????????????????????????? | | ??????????????????????????????????????? | | ??????????????????????????????????????? | | ??????????????????????????????????????? | | ??????????????????????????????????????? | | ??????????????????????????????????????? | | ??????????????????????????????????????? | | ??????????????????????????????????????? | | ??????????????????????????????????????? | | ??????????????????????????????????????? | | ??????????????????????????????????????? | | ??????????????????????????????????????? | | ??????????????????????????????????????? | | ??????????????????????????????????????? | | ??????????????????????????????????????? | | ??????????????????????????????????????? | | ?????????###################??????????? | | ?????????# """ # #??????????? | | ??????????# "T" # ############ | | ??????????# g # # | | ??????????# # + | | ??????????# gYYm # ! # | | ??????????# / """ # ###########+ | | ??????????# """ # ## # | | ??????????# g""" # ## """ # | | ??????????# @ # ## "R" # "" | | ??????????#####+#### ## " " # """ | | ?????????????# + ## # """ | | ?????????????# ############""" # """ | | ?????????????# #??????????#""" # "" | | ?????????????+ #??????????#""" # | | ?????????????# #??????????#""" # | | ?????????????# #??????????#""" ###/# | | ?????????????# #??????????# %#?# # | | ?????????????# #??????????#####/### # | | ?????????????# #??????####### | | ?????????????# ^ #??????+ | | ?????????????+ +??????#### | | ?????????????# #??????####+#### | | ?????????????# #?????? #?# | | ?????????????# ????# """"" #?# ^ | | ?????????????# ????# """"" #?# | | ?????????????? ????# """"" ### " | | ?????????????????????# + " | | ?????????????????????# """"" ###### " | | ?????????????????????# """"" #????# | | ?????????????????????# """"" #????# | | ????????????## ?????# #????# | | ????????????# ########/####????# | | ????????????# ######## | +----------------------------------------------------+ Best States ------------- Heat Dissipation 28 Energy Generation 10 Energy Capacity 250 Matter Stores 300 Matter Capacity 300 Sight Range 16 Robot Scan Range 14 Terrain Scan Density 10 Armor Coverage 80 Evasion (%) 42 Recoil Reduction 1 Item Schematics ----------------- None Robot Schematics ------------------ None Fabricated ------------ Nothing Alien Tech Used ----------------- None Achievements -------------- None Challenges ------------ None Game ------ Seed DamperRecyclingSword Manual? 0 Play Time 00:29:26 Cumulative 16.2 hours Start 2024.05.29 @ 16:04:28 End 2024.05.29 @ 16:36:38 Sessions 1 Manual Loads 0 Difficulty Rogue Special Mode None Game No. 27 Rogue 27 Adventurer 0 Explorer 0 Win Type - Total 0 Types 0/0/0/0/0/0/0/0/0 Lore% 7 Gallery% 27 Achievement% 19 Wizard Run 0 Options --------- Layout 1 ASCII 0 Keyboard 0 Movement Arrows Keybinds 0 Fullscreen 1 Font 16/SmallcapsGlow Map View 50x35 Zoom Use 0% Tactical HUD 1 Map Filters NONE Filters NONE Steam 1 RUN: af484eda-15f2-4ddb-be8a-91e10c348f37